Cogmind - Beta 11.1 @@@ ROGUE MODE // 2022.08.13 @ 17:53:54 Player: WayneKnight Result: Self-destructed Performance ------------- Evolutions (1) 500 Regions Visited (3) 600 Robots Destroyed (32) 160 Value Destroyed (948) 948 Prototype IDs (4) 80 Alien Tech Used (0) 0 Bonus (152) 152 TOTAL SCORE: 2440 Bonus ------- Follower Combat Kills 161 Friendly Fire -9 Cogmind --------- Core Integrity 327/400 Matter 300/300 Energy 265/265 System Corruption 1% Temperature Cool (0) Movement Treading (160) Location -9/Materials Parts ------- > --- POWER (1) -------- Improved Ion Engine > --- PROPULSION (3) --- Improved Treads Improved Treads Improved Treads > --- UTILITY (3) ------ Large Storage Unit Improved Light Armor Plating System Shield > --- WEAPON (2) ------- Heavy Assault Rifle Shotgun > --- INVENTORY (15) --- Improved Ion Engine Light Treads Light Treads Light Treads Improved Treads Improved Treads Sensor Array Experimental Sensor Array Improved Light Armor Plating Sensor Drone Bay (20/20) Shotgun Shotgun Grenade Launcher Rocket Launcher Axe Peak State ------------ > --- POWER ------------ Improved Ion Engine > --- PROPULSION ------- Improved Treads Improved Treads Improved Treads > --- UTILITY ---------- Large Storage Unit Improved Light Armor Plating System Shield > --- WEAPON ----------- Heavy Assault Rifle Shotgun > --- INVENTORY -------- Improved Ion Engine Light Treads Light Treads Light Treads Improved Treads Improved Treads Sensor Array Experimental Sensor Array Improved Light Armor Plating Sensor Drone Bay Shotgun Shotgun Grenade Launcher Rocket Launcher Axe [Rating: 23] Favorites ----------- Power Ion Engine Engine Ion Engine Propulsion Light Treads Treads Light Treads Leg Aluminum Leg Utility Heat Sink Device Heat Sink Storage Large Storage Unit Processor Visual Processing Unit Hackware System Shield Protection Light Armor Plating Weapon Beam Cannon Energy Gun Particle Gun Energy Cannon Beam Cannon Ballistic Gun Light Assault Rifle Build | -11 -10 -10 -9 ------- Run | Scr Mat Min Mat Slots Evolved 2 | . . . 2 Power . | . . . . Propulsion 1 | . . . 1 Utility 1 | . . . 1 Weapon . | . . . . Parts Attached 33 | 2 11 3 17 Power 2 | . 1 . 1 Engine 2 | . 1 . 1 Core . | . . . . Reactor . | . . . . Propulsion 7 | 2 1 . 4 Treads 7 | 2 1 . 4 Leg . | . . . . Wheel . | . . . . Hover . | . . . . Flight . | . . . . Utility 10 | . 3 2 5 Device 4 | . 1 2 1 Storage 1 | . 1 . . Processor 1 | . . . 1 Hackware 1 | . . . 1 Protection 3 | . 1 . 2 Artifact . | . . . . Weapon 14 | . 6 1 7 Energy Gun 7 | . 3 . 4 Energy Cannon 2 | . 2 . . Ballistic Gun 5 | . 1 1 3 Ballistic Cannon . | . . . . Launcher . | . . . . Special Weapon . | . . . . Impact Weapon . | . . . . Slashing Weapon . | . . . . Piercing Weapon . | . . . . Special Melee Weapon . | . . . . Unidentified Prototypes 2 | . . 1 1 Parts Lost 2 | . 1 . 1 Power . | . . . . Propulsion . | . . . . Utility 1 | . . . 1 Weapon 1 | . 1 . . Highest Loss Streak 1 | . 1 . 1 To Critical Strikes . | . . . . Average Slot Usage (%) 98 | . 98 100 98 Engine 12 | . 14 14 11 Treads 29 | . 27 28 32 Device 10 | . 9 14 9 Storage 12 | . 14 14 11 Protection 4 | . 2 . 9 Energy Gun 14 | . 15 19 9 Energy Cannon 5 | . 12 . . Ballistic Gun 6 | . . 8 12 Naked Turns . | . . . . Heaviest Build 37 | 12 31 31 37 Greatest Support 69 | 40 40 40 69 Greatest Overweight (x) . | . . . . Average Overweight (x) . | . . . . Largest Inventory Capacity 15 | 8 15 15 15 Average Capacity 11 | 8 8 15 15 Most Carried 15 | 6 9 13 15 Average Carried 10 | 6 7 11 14 Final Capacity 15 | 8 15 15 15 Final Carried 15 | 6 9 13 15 Class Distribution -------------------- 84% | Mutant 15% | Scavenger-Mutant Dominant Class ---------------- Mutant | -10/Materials Mutant | -10/Mines Mutant | -9/Materials Resources | -11 -10 -10 -9 ----------- Run | Scr Mat Min Mat Matter Collected 673 | 185 145 32 311 Remotely . | . . . . Salvage Created 1085 | . 511 11 563 Parts 71 | . 24 1 46 Haulers Intercepted . | . . . . Recyclers Shooed . | . . . . Parts Field Recycled . | . . . . Retrieved Matter . | . . . . Parts Self-Destructed . | . . . . Prevented . | . . . . Kills | -11 -10 -10 -9 ------- Run | Scr Mat Min Mat Combat Hostiles Destroyed 29 | . 10 1 18 Guns 21 | . 2 1 18 Cannons 6 | . 6 . . AOE 1 | . 1 . . Classes Destroyed 6 | . 3 1 2 Worker 1 | . 1 . . Watcher 2 | . 2 . . Swarmer 8 | . . 1 7 Grunt 17 | . 10 . 7 Duelist 1 | . . . 1 Sentry 3 | . . . 3 Best Kill Streak 5 | . 2 1 5 Combat Bots Only 5 | . 2 1 5 Max Kills in Single Turn 1 | . 1 1 1 Gunslinging . | . . . . Exploded 1 | . 1 . . Melee . | . . . . Uniques/NPCs Destroyed . | . . . . Combat | -11 -10 -10 -9 -------- Run | Scr Mat Min Mat Damage Taken 1031 | . 414 49 568 Core 94 | . 21 . 73 Absorbed by Shields . | . . . . Regen/Repaired (Parts) 110 | . . . 110 Core Remaining (%) 95 | 100 . 91 . Volleys Fired 95 | . 44 4 47 Largest 2 | . 2 2 2 Hottest 115 | . 115 115 85 Shots Fired 187 | . 88 6 93 Gun 148 | . 49 6 93 Cannon 39 | . 39 . . Launcher . | . . . . Special . | . . . . Kinetic 65 | . . 2 63 Thermal 105 | . 74 4 27 Explosive . | . . . . Electromagnetic 17 | . 14 . 3 Robot Hit Streak 13 | . 12 2 13 Robot Miss Streak 5 | . 5 2 2 Penetration Max . | . . . . Secondary Targets . | . . . . Shots Hit Robots 121 | . 52 2 67 Core Hits 52 | . 19 2 31 Critical Kills . | . . . . Critical Parts Destroyed . | . . . . Critical Strikes 5 | . 4 . 1 Burn 5 | . 4 . 1 Melee Attacks . | . . . . Impact . | . . . . Slashing . | . . . . Piercing . | . . . . Sneak Attacks . | . . . . Combat Hostiles . | . . . . Follow-up Attacks . | . . . . Damage Inflicted 1760 | . 878 39 843 Guns 1308 | . 431 39 838 Cannons 400 | . 400 . . Explosions 47 | . 47 . . Melee . | . . . . Ramming 5 | . . . 5 Kinetic 516 | . . 9 507 Thermal 1079 | . 769 30 280 Explosive . | . . . . Electromagnetic 160 | . 109 . 51 Impact . | . . . . Slashing . | . . . . Piercing . | . . . . Highest Corruption 1 | . . . 1 Average Corruption 1 | . . . 1 Corruption Purged . | . . . . Corruption Blocked . | . . . . Effects 2 | . . . 2 Message Errors 1 | . . . 1 Energy Discharges 1 | . . . 1 Overload Shots . | . . . . Overflow Damage . | . . . . Projectiles . | . . . . Explosions . | . . . . Melee . | . . . . Knockbacks . | . . . . Impact . | . . . . Kinetic . | . . . . Secondary . | . . . . Self-Inflicted Damage . | . . . . Shots . | . . . . Rammed 1 | . . . 1 Targets Rammed 1 | . . . 1 Kicked . | . . . . Crushed . | . . . . Highest Temperature 342 | . 342 48 48 Average Temperature 72 | . 94 26 16 Received Heat Transfer 414 | . 279 . 135 Siege Activations . | . . . . Robots Corrupted . | . . . . Combat Hostiles . | . . . . Parts Fried 1 | . . . 1 Impact Corruptions . | . . . . Robots Melted 1 | . 1 . . Combat Hostiles 1 | . 1 . . Parts Melted 6 | . 5 . 1 Heat Transferred 2899 | . 2048 74 777 Parts Sabotaged . | . . . . Parts Stolen . | . . . . Parts Stripped . | . . . . Power Chain Reactions 1 | . 1 . . Missiles Intercepted . | . . . . Alert | -11 -10 -10 -9 ------- Run | Scr Mat Min Mat Peak Influence 273 | . 181 182 273 Initial 63 | . . 63 . Average 52 | . 41 42 72 Maximum Alert Level 1 | . . . 1 Low Security (%) 98 | 100 100 100 96 Level 1 1 | . . . 3 Level 2 . | . . . . Level 3 . | . . . . Level 4 . | . . . . Level 5 . | . . . . High Security . | . . . . Max Security . | . . . . Squads Dispatched 4 | . 2 . 2 Investigation 2 | . 1 . 1 Extermination . | . . . . Reinforcement 2 | . 1 . 1 Assault . | . . . . Garrison . | . . . . Intercept . | . . . . Searches Triggered . | . . . . Construction Impeded . | . . . . Haulers Reinforced . | . . . . Active Scanning Responses . | . . . . Cargo Convoy Interrupts . | . . . . Stealth | -11 -10 -10 -9 --------- Run | Scr Mat Min Mat Distress Signals 2 | . . . 2 Communications Jammed . | . . . . Distress Signals . | . . . . Times Spotted 48 | . 14 5 29 Peak Tracking Total 4 | . 3 3 4 Tactical Retreats 2 | . . . 2 Traps | -11 -10 -10 -9 ------- Run | Scr Mat Min Mat Traps Triggered 2 | . 1 . 1 Indirectly . | . . . . Trap Hack Attempts . | . . . . Triggered . | . . . . Disarmed . | . . . . Reprogrammed . | . . . . Reused . | . . . . Traps Extracted . | . . . . Installed . | . . . . Triggered 1 | . . 1 . Machines | -11 -10 -10 -9 ---------- Run | Scr Mat Min Mat Machines Disabled 2 | . 1 1 . Max in Single Turn 1 | . 1 1 . Machines Sabotaged . | . . . . Garrisons Compromised . | . . . . Overloaded Fab Kills . | . . . . Hacking | -11 -10 -10 -9 --------- Run | Scr Mat Min Mat Machines Accessed 15 | . 7 2 6 Terminals 11 | . 6 1 4 Fabricators . | . . . . Repair Stations 1 | . . . 1 Recycling Units 2 | . 1 . 1 Scanalyzers . | . . . . Garrison Access . | . . . . Total Hacks 50 | . 27 4 19 Successful 33 | . 17 2 14 Failed 16 | . 10 2 4 Catastrophic 1 | . . 1 . Database Lockouts 1 | . . . 1 Manual 36 | . 17 3 16 Terminals 43 | . 25 3 15 Fabricators . | . . . . Repair Stations 2 | . . . 2 Recycling Units 4 | . 2 . 2 Scanalyzers . | . . . . Garrison Access . | . . . . Terminal Hacks 13 | . 9 1 3 Robot Analysis 5 | . 4 . 1 Prototype ID Bank 1 | . . . 1 Open Door 1 | . . 1 . Alert Level 1 | . . . 1 Locate Traps 3 | . 3 . . Hauler Manifests 1 | . 1 . . Zone Layout 1 | . 1 . . Fabricator Hacks . | . . . . Repair Station Hacks 2 | . . . 2 Scan Component 1 | . . . 1 Repair 1 | . . . 1 Recycling Unit Hacks 2 | . 1 . 1 Report Inventory 2 | . 1 . 1 Scanalyzer . | . . . . Garrison Access Hacks . | . . . . Unauthorized Hacks 16 | . 7 1 8 Terminals 14 | . 6 1 7 Track 5 | . 1 1 3 Assimilate 1 | . 1 . . Botnet 6 | . 3 . 3 Operators 2 | . 1 . 1 Fabricators . | . . . . Repair Stations . | . . . . Recycling Units 2 | . 1 . 1 Tunnel 2 | . 1 . 1 Scanalyzers . | . . . . Garrison Access . | . . . . Data Cores Recovered . | . . . . Used . | . . . . Hacking Detections 13 | . 6 1 6 Full Trace Events . | . . . . Feedback Events . | . . . . Feedback Blocked . | . . . . Robot Schematics Acquired . | . . . . Robots Built . | . . . . Authchips . | . . . . Time . | . . . . Total Robot Build Rating . | . . . . Part Schematics Acquired . | . . . . Parts Built . | . . . . Authchips . | . . . . Time . | . . . . Total Part Build Rating . | . . . . Parts Repaired 1 | . . . 1 Time 32 | . . . 32 Parts Recycled . | . . . . Recycled Matter . | . . . . Retrieved Matter . | . . . . Retrieved Components . | . . . . Parts Scanalyzed . | . . . . Part Schematics Acquired . | . . . . Parts Damaged . | . . . . Bothacking | -11 -10 -10 -9 ------------ Run | Scr Mat Min Mat Used RIF Installer . | . . . . Robots Hacked . | . . . . Non-combat . | . . . . Combat . | . . . . Robot Hacks Applied . | . . . . Relay Couplers Released . | . . . . Fabnet Peak Effective % . | . . . . Robots Rewired . | . . . . Allies Hacked . | . . . . Hacks Repelled . | . . . . Allies | -11 -10 -10 -9 -------- Run | Scr Mat Min Mat Total Allies 3 | . . 3 . Largest Group 3 | . . 3 3 Highest-Rated Group 40 | . . 40 40 Highest-Rated Ally 16 | . . 16 16 Total Orders . | . . . . Ally Attacks 52 | . . 16 36 Total Damage 445 | . . 110 335 Kills 9 | . . 4 5 Allies Corrupted . | . . . . Allies Melted 1 | . . . 1 Intel | -11 -10 -10 -9 ------- Run | Scr Mat Min Mat Robot Analysis Total 5 | . 4 . 1 Derelict Logs Recovered 1 | . . 1 . Drone Launches . | . . . . Drone Recoveries . | . . . . Exploration | -11 -10 -10 -9 ------------- Run | Scr Mat Min Mat Turns Passed 7803 | 5 3681 1409 2708 Spaces Moved 1829 | 2 596 650 581 Core . | . . . . Treads 1829 | 2 596 650 581 Legs . | . . . . Wheels . | . . . . Hover . | . . . . Flight . | . . . . Fastest Speed 160 | 160 160 160 160 Average Speed 160 | 160 160 160 160 Slowest Speed 160 | 160 160 160 160 Overloaded Moves . | . . . . Propulsion Burnouts . | . . . . Robots Hopped . | . . . . Cave-ins Triggered . | . . . . Exploration Rate (%) 55 | 1 85 99 38 Regions Visited 3 Branch Regions 1 Pre-discovered Areas 2 | . 1 . 1 Known Exits Taken . | . . . . Unknown Exits Taken 3 | 1 1 1 . Scrap Searched 1 | . . 1 . Spaces Dug . | . . . . Terrain Destroyed 2 | . 2 . . Melee . | . . . . Projectile . | . . . . AOE 2 | . 2 . . Terrain Rammed . | . . . . Walls Destroyed . | . . . . Machines Disabled . | . . . . Actions | -11 -10 -10 -9 --------- Run | Scr Mat Min Mat Total 6526 | 3 3233 1014 2276 Wait 4523 | . 2571 353 1599 Move 1826 | 1 595 649 581 Hop . | . . . . Pick Up 22 | . 7 3 12 Fast Attach 13 | . 4 1 8 Attach 2 | . 1 1 . Detach 3 | . . 2 1 Swap 18 | 2 6 1 9 Drop 23 | . 5 . 18 Fire 95 | . 44 4 47 Melee . | . . . . Ram . | . . . . Kick . | . . . . Crush 1 | . . . 1 Escape Stasis . | . . . . Rewire . | . . . . Trap . | . . . . Miscellaneous . | . . . . Route ------- -11/Scrapyard -10/Materials (discovered 4 exits: *Mat x2 / *Min x2) -10/Mines (discovered 2 exits: *Mat x2) -9/Materials (discovered 1 exit: [*Mat]) History --------- Turn | Location | Event 4 | -11/Scrapyard | Discovered new exit (range 1) 6 | -11/Scrapyard | Entered Materials 312 | -10/Materials | Build established: Mutant 1848 | -10/Materials | Discovered new exit (range 16) 2144 | -10/Materials | Discovered new exit (range 11) 3253 | -10/Materials | Discovered new exit (range 13) 3597 | -10/Materials | Discovered new exit (range 16) 3687 | -10/Materials | Entered Mines 3689 | -10/Mines | Met a Derelict bent on vengeance 3778 | -10/Mines | Assisted by bots powering up and referring to "LRC-V3" 3818 | -10/Mines | Learned Materials emergency access door positions 4117 | -10/Mines | Found a damaged Exp. Sensor Array with a note attached 4120 | -10/Mines | Found Prototype Device 4205 | -10/Mines | Received a Rocket Launcher from a helpful Derelict 4708 | -10/Mines | Discovered new exit (range 7) 4730 | -10/Mines | Found the Drone Emporium 4773 | -10/Mines | Found Prototype Device 4773 | -10/Mines | Identified Sensor Drone Bay 4810 | -10/Mines | Discovered new exit (range 11) 4874 | -10/Mines | Found a hidden stash of uninstalled traps 5096 | -10/Mines | Entered Materials 5096 | -9/Materials | Accompanied by 3 allies 5096 | -9/Materials | Evolved 2 slots: Propulsion x1, Utility x1 6461 | -9/Materials | Build established: Scavenger-Mutant 7427 | -9/Materials | Discovered new exit (range 18) 7602 | -9/Materials | Repaired Imp. Treads 7636 | -9/Materials | Central database locked down 7680 | -9/Materials | Build established: Mutant 7804 | -9/Materials | Self-destructed Last Messages --------------- Current Alert Level: Low Security 07636_ ALERT: Central database lockdown, local access denied. 07651_ R-06 Scavenger collects Aluminum Leg. 07722_ C-30 ARC bursts open, deploying its payload. 07722_ S-10 Pest unfolds itself. 07727_ S-10 Pest destroyed. 07728_ K-01 Serf collects debris. 07736_ S-10 Pest destroyed. 07738_ K-01 Serf collects debris. 07745_ S-10 Pest destroyed. 07748_ Acquired 18 matter. 07748_ K-01 Serf collects debris. 07749_ Acquired 9 matter. 07752_ Acquired 2 matter. 07756_ W-16 Scout sends out distress signal. 07759_ Acquired 57 matter. 07769_ G-47 Trooper destroyed. 07772_ K-01 Serf collects debris. 07772_ Acquired 14 matter. 07773_ K-01 Serf collects debris. Map ----- +----------------------------------------------------+ | ?????????????????????????????????????????????????? | | ?????????????????????????????????????????????????? | | ?????????????????????????????????????????????????? | | ?????????????????????????????????????????????????? | | ?????????????????????????????????????????????????? | | ?????????????????????????????????????????????????? | | ?????????????????????????????????????????????????? | | ????????????????????????????????????????o????????? | | ?????????????????????????????????????????????????? | | ?????????????????????????????????????????????????? | | ?????????????????????????????????????????????????? | | ?????????????????????????????????????????????????? | | ?????????????????????????????????????????????????? | | ?????????????????????????????????????????????????? | | ?????????????????????????????????????????????????? | | ?????????????????????????????????????????????????? | | ?????????????????????????????????????????????????? | | ?????????????????????????????????????????????????? | | ?????????????????????????????????????????????????? | | ?????????????????????????????????????????????????? | | ????????????????????##########???????????????????? | | ????????????????????# #???????????????????? | | ????????????????????# """#???????????????????? | | ????????????????????# """#???????????????????? | | ????????????????????# """#???????????????????? | | ????????????????????# @ #????"??????????????? | | ????????????????????# """#???""?? ???????????? | | ????????????????????# """#??""" "???????????? | | ????????????????????# """#? "" ""??????????? | | ????????????????????# # "" "" ?????????? | | ????????????????????#######+## " " ??????? | | ???????????????????????# ??????? | | ???????????????????????# ??????? | | ?????????????########### ??????? | | ?????????????# # ??????? | | ?????????????#%""""""" # ###############???????? | | ?????????????#="""""""=# #?????????????????????? | | ?????????????# """""""[/ #???###???????????????? | | ?????????????#=""""""%%# ??????????????? | | ?????????????# " """""!# ##?????????????? | | ##############[ % # #??????????????? | | + % % ######## #??????????????? | | ####################+###??????# #??????????????? | | #?????????????#%#????????# #??????????????? | | """ #?????????????# #????????# #??????????????? | | """ #########?????# #????????# #??????????????? | | """ # #??#### ########## #??????????????? | | *# T #??# ![%=% #??????????????? | | # #??# ########## ###########????? | | ##+### #??# # # # ! #????? | +----------------------------------------------------+ Best States ------------- Heat Dissipation 38 Energy Generation 12 Energy Capacity 265 Matter Stores 300 Matter Capacity 300 Sight Range 18 Terrain Scan Density 10 Armor Coverage 150 Power Shielding 33 Evasion (%) 40 Recoil Reduction 3 Defensive Hacking 10 Item Schematics ----------------- None Robot Schematics ------------------ None Fabricated ------------ Nothing Alien Tech Used ----------------- None Achievements -------------- None Challenges ------------ None Game ------ Seed IntegrityEnergyTendrils Manual? 0 Play Time 00:25:16 Cumulative 290.9 hours Start 2022.06.29 @ 17:48:07 End 2022.08.13 @ 17:53:54 Sessions 5 Manual Loads 0 Difficulty Rogue Special Mode None Game No. 210 Rogue 210 Adventurer 0 Explorer 0 Win Type - Total 6 Types 6/0/0/0/0/0/0/0/0 Lore% 59 Gallery% 65 Achievement% 51 Wizard Run 0 Options --------- ASCII 1 Keyboard 1 Movement Arrows Keybinds 0 Fullscreen 1 Font 24/Smallcaps Map View 76x50 Tactical HUD 1 Map Filters NONE Filters NONE Steam 1 RUN: e75aeaba-dc93-42e2-8488-6b58a57624d2